[Event "Titled Tuesday Blitz May 4 2021"]
[White "Yilmaz, Mustafa"]
[Black "Tutisani, Noe"]
[WhiteFideId "6302718"]
[BlackFideId "13602853"]
[WhiteElo "2518"]
[BlackElo "2227"]
[Result "1-0"]
[Round "02"]
[TimeControl "180+1"]
[Date "2021.05.04"]
[WhiteClock "0:01:05"]
[BlackClock "0:01:31"]

1. c4 {[%clk 0:03:00]}  Nf6 {[%clk 0:02:59]} 2. Nc3 {[%clk 0:03:01]}  c5 {[%clk 0:02:59]} 3. Nf3 {[%clk 0:03:00]}  b6 {[%clk 0:02:59]} 4. g3 {[%clk 0:03:00]}  Bb7 {[%clk 0:02:59]} 5. Bg2 {[%clk 0:03:01]}  g6 {[%clk 0:02:59]} 6. d4 {[%clk 0:02:56]}  cxd4 {[%clk 0:02:59]} 7. Qxd4 {[%clk 0:02:56]}  Bg7 {[%clk 0:02:59]} 8. O-O {[%clk 0:02:53]}  d6 {[%clk 0:03:00]} 9. Rd1 {[%clk 0:02:50]}  Nbd7 {[%clk 0:02:59]} 10. Qh4 {[%clk 0:02:49]}  h6 {[%clk 0:02:59]} 11. Be3 {[%clk 0:02:39]}  Rc8 {[%clk 0:02:59]} 12. Rac1 {[%clk 0:02:37]}  Kf8 {[%clk 0:02:52]} 13. g4 {[%clk 0:02:11]}  Rxc4 {[%clk 0:02:50]} 14. h3 {[%clk 0:02:11]}  h5 {[%clk 0:02:49]} 15. Nd2 {[%clk 0:01:56]}  hxg4 {[%clk 0:02:42]} 16. Qg3 {[%clk 0:01:56]}  gxh3 {[%clk 0:02:37]} 17. Nxc4 {[%clk 0:01:49]}  Bxg2 {[%clk 0:02:33]} 18. f3 {[%clk 0:01:48]}  Nh5 {[%clk 0:02:18]} 19. Qf2 {[%clk 0:01:38]}  Ne5 {[%clk 0:02:12]} 20. Ne4 {[%clk 0:01:28]}  Nxc4 {[%clk 0:01:55]} 21. Rxc4 {[%clk 0:01:29]}  Be5 {[%clk 0:01:51]} 22. Bd4 {[%clk 0:01:15]}  Bxd4 {[%clk 0:01:37]} 23. Qxd4 {[%clk 0:01:16]}  f6 {[%clk 0:01:34]} 24. Rdc1 {[%clk 0:01:11]}  Kg7 {[%clk 0:01:31]} 25. Rc7 {[%clk 0:01:10]}  Nf4 {[%clk 0:01:31]} 26. Qxf6+ {[%clk 0:01:05]} 1-0


[Site "https://www.chess.com"]

[Event "Titled Tuesday Blitz May 4 2021"]
[White "Zhou, Qiyu"]
[Black "Volkov, Maksim"]
[WhiteFideId "505161"]
[BlackFideId "54123070"]
[WhiteElo "1925"]
[BlackElo "2113"]
[Result "1-0"]
[Round "02"]
[TimeControl "180+1"]
[Date "2021.05.04"]
[WhiteClock "0:00:08"]
[BlackClock "0:00:20"]

1. e4 {[%clk 0:03:00]}  c5 {[%clk 0:02:59]} 2. Nf3 {[%clk 0:03:00]}  e6 {[%clk 0:02:59]} 3. d4 {[%clk 0:02:58]}  cxd4 {[%clk 0:02:59]} 4. Nxd4 {[%clk 0:02:59]}  a6 {[%clk 0:03:00]} 5. Nc3 {[%clk 0:02:58]}  Qc7 {[%clk 0:03:00]} 6. a3 {[%clk 0:02:57]}  Nf6 {[%clk 0:02:58]} 7. Be3 {[%clk 0:02:50]}  b5 {[%clk 0:02:57]} 8. Be2 {[%clk 0:02:46]}  Bb7 {[%clk 0:02:56]} 9. f3 {[%clk 0:02:43]}  d5 {[%clk 0:02:56]} 10. exd5 {[%clk 0:02:38]}  Nxd5 {[%clk 0:02:56]} 11. Nxd5 {[%clk 0:02:36]}  Bxd5 {[%clk 0:02:55]} 12. O-O {[%clk 0:02:35]}  Bd6 {[%clk 0:02:54]} 13. f4 {[%clk 0:02:28]}  Nd7 {[%clk 0:02:51]} 14. Qe1 {[%clk 0:02:23]}  Nf6 {[%clk 0:02:48]} 15. c3 {[%clk 0:02:15]}  O-O {[%clk 0:02:47]} 16. Qh4 {[%clk 0:02:09]}  Be7 {[%clk 0:02:23]} 17. Qg3 {[%clk 0:02:03]}  Ne4 {[%clk 0:02:22]} 18. Qh3 {[%clk 0:01:56]}  f5 {[%clk 0:02:20]} 19. Rad1 {[%clk 0:01:51]}  Rad8 {[%clk 0:02:19]} 20. Kh1 {[%clk 0:01:42]}  Bf6 {[%clk 0:02:14]} 21. Bf3 {[%clk 0:01:29]}  Qf7 {[%clk 0:02:08]} 22. Ne2 {[%clk 0:01:24]}  Qb7 {[%clk 0:02:01]} 23. Ng3 {[%clk 0:01:20]}  g6 {[%clk 0:01:51]} 24. Nxe4 {[%clk 0:01:08]}  Bxe4 {[%clk 0:01:45]} 25. Bc5 {[%clk 0:00:55]}  Rfe8 {[%clk 0:01:36]} 26. Bxe4 {[%clk 0:00:38]}  Qxe4 {[%clk 0:01:35]} 27. Qg3 {[%clk 0:00:33]}  Qc2 {[%clk 0:01:25]} 28. Rxd8 {[%clk 0:00:30]}  Rxd8 {[%clk 0:01:24]} 29. Qe3 {[%clk 0:00:29]}  Kf7 {[%clk 0:01:23]} 30. Re1 {[%clk 0:00:24]}  Qb3 {[%clk 0:01:15]} 31. h3 {[%clk 0:00:20]}  Rd7 {[%clk 0:01:14]} 32. Kh2 {[%clk 0:00:19]}  h5 {[%clk 0:01:11]} 33. Re2 {[%clk 0:00:19]}  h4 {[%clk 0:01:10]} 34. Qf3 {[%clk 0:00:18]}  Rd5 {[%clk 0:01:02]} 35. Qe3 {[%clk 0:00:15]}  Rd7 {[%clk 0:00:58]} 36. Qf3 {[%clk 0:00:14]}  Qc4 {[%clk 0:00:41]} 37. Be3 {[%clk 0:00:10]}  a5 {[%clk 0:00:35]} 38. Rd2 {[%clk 0:00:07]}  Rxd2 {[%clk 0:00:31]} 39. Bxd2 {[%clk 0:00:08]}  Kg7 {[%clk 0:00:32]} 40. Qb7+ {[%clk 0:00:07]}  Kh6 {[%clk 0:00:32]} 41. Qb6 {[%clk 0:00:04]}  a4 {[%clk 0:00:29]} 42. Qf2 {[%clk 0:00:03]}  Qd3 {[%clk 0:00:26]} 43. Be3 {[%clk 0:00:03]}  Be7 {[%clk 0:00:24]} 44. Bd4 {[%clk 0:00:03]}  g5 {[%clk 0:00:22]} 45. fxg5+ {[%clk 0:00:01]}  Bxg5 {[%clk 0:00:22]} 46. Qe1 {[%clk 0:00:02]}  Bf4+ {[%clk 0:00:21]} 47. Kh1 {[%clk 0:00:02]}  Kg5 {[%clk 0:00:20]} 48. Qxe6 {[%clk 0:00:01]}  Qb1+ {[%clk 0:00:17]} 49. Bg1 {[%clk 0:00:02]}  Qxb2 {[%clk 0:00:17]} 50. Qg8+ {[%clk 0:00:02]}  Kf6 {[%clk 0:00:17]} 51. Qf8+ {[%clk 0:00:03]}  Kg5 {[%clk 0:00:17]} 52. Qg7+ {[%clk 0:00:03]}  Kh5 {[%clk 0:00:17]} 53. Qh7+ {[%clk 0:00:03]}  Kg5 {[%clk 0:00:18]} 54. Qg7+ {[%clk 0:00:04]}  Kh5 {[%clk 0:00:18]} 55. Qh7+ {[%clk 0:00:04]}  Bh6 {[%clk 0:00:19]} 56. Qxf5+ {[%clk 0:00:03]}  Bg5 {[%clk 0:00:18]} 57. Qh7+ {[%clk 0:00:03]}  Bh6 {[%clk 0:00:18]} 58. Be3 {[%clk 0:00:01]}  Qb1+ {[%clk 0:00:17]} 59. Qxb1 {[%clk 0:00:01]}  Bxe3 {[%clk 0:00:17]} 60. Qxb5+ {[%clk 0:00:02]}  Bg5 {[%clk 0:00:18]} 61. Qxa4 {[%clk 0:00:03]}  Kg6 {[%clk 0:00:18]} 62. Qg4 {[%clk 0:00:03]}  Kf6 {[%clk 0:00:18]} 63. Kg1 {[%clk 0:00:04]}  Be3+ {[%clk 0:00:18]} 64. Kf1 {[%clk 0:00:05]}  Bg5 {[%clk 0:00:19]} 65. Ke2 {[%clk 0:00:06]}  Kg6 {[%clk 0:00:20]} 66. Kf3 {[%clk 0:00:07]}  Kh6 {[%clk 0:00:20]} 67. Ke4 {[%clk 0:00:08]} 1-0


[Site "https://www.chess.com"]

[Event "Titled Tuesday Blitz May 4 2021"]
[White "Zia, Tahsin Tajwar"]
[Black "parintele_chess"]
[WhiteFideId "10211888"]
[WhiteElo "1678"]
[BlackElo "2241"]
[Result "0-1"]
[Round "02"]
[TimeControl "180+1"]
[Date "2021.05.04"]
[WhiteClock "0:01:54"]
[BlackClock "0:02:02"]

1. d4 {[%clk 0:03:00]}  Nf6 {[%clk 0:02:58]} 2. c4 {[%clk 0:03:00]}  b6 {[%clk 0:02:57]} 3. Nc3 {[%clk 0:03:00]}  Bb7 {[%clk 0:02:57]} 4. Qc2 {[%clk 0:03:00]}  e6 {[%clk 0:02:57]} 5. e4 {[%clk 0:02:57]}  d6 {[%clk 0:02:57]} 6. Nf3 {[%clk 0:02:56]}  Nbd7 {[%clk 0:02:57]} 7. Bd3 {[%clk 0:02:52]}  h6 {[%clk 0:02:57]} 8. h3 {[%clk 0:02:50]}  Be7 {[%clk 0:02:56]} 9. Be3 {[%clk 0:02:50]}  c5 {[%clk 0:02:56]} 10. O-O {[%clk 0:02:48]}  a6 {[%clk 0:02:50]} 11. d5 {[%clk 0:02:48]}  e5 {[%clk 0:02:50]} 12. a3 {[%clk 0:02:37]}  g5 {[%clk 0:02:46]} 13. Nh2 {[%clk 0:02:33]}  Nh5 {[%clk 0:02:38]} 14. g3 {[%clk 0:02:25]}  Ndf6 {[%clk 0:02:31]} 15. Be2 {[%clk 0:02:20]}  Qd7 {[%clk 0:02:28]} 16. Kg2 {[%clk 0:02:20]}  Bc8 {[%clk 0:02:22]} 17. Ng4 {[%clk 0:02:19]}  Nf4+ {[%clk 0:02:18]} 18. gxf4 {[%clk 0:02:17]}  gxf4 {[%clk 0:02:19]} 19. Bd2 {[%clk 0:02:14]}  h5 {[%clk 0:02:16]} 20. f3 {[%clk 0:02:14]}  hxg4 {[%clk 0:02:15]} 21. hxg4 {[%clk 0:02:11]}  Rg8 {[%clk 0:02:14]} 22. Rg1 {[%clk 0:02:07]}  Nxg4 {[%clk 0:02:05]} 23. fxg4 {[%clk 0:02:05]}  Rxg4+ {[%clk 0:02:06]} 24. Bxg4 {[%clk 0:01:59]}  Qxg4+ {[%clk 0:02:07]} 25. Kf1 {[%clk 0:01:55]}  Qf3+ {[%clk 0:02:02]} 26. Ke1 {[%clk 0:01:55]}  Bh4+ {[%clk 0:02:02]} 27. Rg3 {[%clk 0:01:54]}  Bxg3# {[%clk 0:02:02]} 0-1


[Site "https://www.chess.com"]

[Event "Titled Tuesday Blitz May 4 2021"]
[White "de Leon, Patricia"]
[Black "Onufrienko, Vladislav"]
[WhiteFideId "3000273"]
[BlackFideId "13804332"]
[WhiteElo "1989"]
[BlackElo "1661"]
[Result "0-1"]
[Round "02"]
[TimeControl "180+1"]
[Date "2021.05.04"]
[WhiteClock "0:00:01"]
[BlackClock "0:00:42"]

1. d4 {[%clk 0:03:00]}  d5 {[%clk 0:02:59]} 2. c4 {[%clk 0:02:59]}  c6 {[%clk 0:03:00]} 3. cxd5 {[%clk 0:02:56]}  cxd5 {[%clk 0:03:01]} 4. Nc3 {[%clk 0:02:51]}  Nf6 {[%clk 0:03:00]} 5. Bf4 {[%clk 0:02:51]}  Nc6 {[%clk 0:03:00]} 6. e3 {[%clk 0:02:51]}  Bf5 {[%clk 0:02:56]} 7. Rc1 {[%clk 0:02:44]}  e6 {[%clk 0:02:55]} 8. Nf3 {[%clk 0:02:21]}  Be7 {[%clk 0:02:53]} 9. Be2 {[%clk 0:01:27]}  O-O {[%clk 0:02:53]} 10. O-O {[%clk 0:01:26]}  Rc8 {[%clk 0:02:53]} 11. Qa4 {[%clk 0:01:12]}  a6 {[%clk 0:02:50]} 12. a3 {[%clk 0:01:04]}  Qb6 {[%clk 0:02:50]} 13. b4 {[%clk 0:01:00]}  Qa7 {[%clk 0:02:46]} 14. Qb3 {[%clk 0:00:59]}  b5 {[%clk 0:02:46]} 15. Nb1 {[%clk 0:00:43]}  Nd7 {[%clk 0:02:40]} 16. Nbd2 {[%clk 0:00:40]}  Nb6 {[%clk 0:02:40]} 17. Ne5 {[%clk 0:00:37]}  Nxe5 {[%clk 0:02:38]} 18. Bxe5 {[%clk 0:00:37]}  Nc4 {[%clk 0:02:37]} 19. Qa2 {[%clk 0:00:34]}  Nxe5 {[%clk 0:02:31]} 20. dxe5 {[%clk 0:00:35]}  Qb8 {[%clk 0:02:31]} 21. Qb2 {[%clk 0:00:32]}  f6 {[%clk 0:02:29]} 22. exf6 {[%clk 0:00:26]}  Bxf6 {[%clk 0:02:30]} 23. Qa2 {[%clk 0:00:23]}  Qd6 {[%clk 0:02:22]} 24. Nb3 {[%clk 0:00:20]}  e5 {[%clk 0:02:11]} 25. Nc5 {[%clk 0:00:14]}  Kh8 {[%clk 0:02:11]} 26. Rfd1 {[%clk 0:00:13]}  Bg6 {[%clk 0:02:01]} 27. Rxd5 {[%clk 0:00:12]}  Qb6 {[%clk 0:01:54]} 28. Qd2 {[%clk 0:00:11]}  Rcd8 {[%clk 0:01:51]} 29. Rd1 {[%clk 0:00:11]}  Rxd5 {[%clk 0:01:49]} 30. Qxd5 {[%clk 0:00:11]}  Rd8 {[%clk 0:01:41]} 31. Qb7 {[%clk 0:00:08]}  Qxb7 {[%clk 0:01:31]} 32. Nxb7 {[%clk 0:00:08]}  Rxd1+ {[%clk 0:01:31]} 33. Bxd1 {[%clk 0:00:09]}  Bd3 {[%clk 0:01:18]} 34. Nc5 {[%clk 0:00:07]}  e4 {[%clk 0:01:17]} 35. Nxa6 {[%clk 0:00:07]}  Bb2 {[%clk 0:01:17]} 36. a4 {[%clk 0:00:06]}  bxa4 {[%clk 0:01:16]} 37. Nc5 {[%clk 0:00:05]}  a3 {[%clk 0:01:11]} 38. Bb3 {[%clk 0:00:05]}  Bb1 {[%clk 0:01:00]} 39. b5 {[%clk 0:00:02]}  a2 {[%clk 0:00:58]} 40. Bxa2 {[%clk 0:00:02]}  Bxa2 {[%clk 0:00:59]} 41. b6 {[%clk 0:00:02]}  Bd5 {[%clk 0:00:42]} 42. b7 {[%clk 0:00:01]}  Be5 {[%clk 0:00:42]} 0-1


[Site "https://www.chess.com"]

[Event "Titled Tuesday Blitz May 4 2021"]
[White "tylityli"]
[Black "DraG0s3L"]
[WhiteElo "2326"]
[BlackElo "2543"]
[Result "1-0"]
[Round "02"]
[TimeControl "180+1"]
[Date "2021.05.04"]
[WhiteClock "0:00:14"]
[BlackClock "0:00:18"]

1. d4 {[%clk 0:03:00]}  Nf6 {[%clk 0:02:59]} 2. c4 {[%clk 0:03:01]}  e6 {[%clk 0:02:59]} 3. Nc3 {[%clk 0:03:00]}  Bb4 {[%clk 0:03:00]} 4. e3 {[%clk 0:03:00]}  O-O {[%clk 0:02:59]} 5. Ne2 {[%clk 0:03:01]}  c6 {[%clk 0:02:57]} 6. a3 {[%clk 0:03:01]}  Ba5 {[%clk 0:02:57]} 7. b4 {[%clk 0:03:01]}  Bc7 {[%clk 0:02:57]} 8. Bb2 {[%clk 0:03:01]}  d5 {[%clk 0:02:57]} 9. Nf4 {[%clk 0:02:56]}  Re8 {[%clk 0:02:44]} 10. Be2 {[%clk 0:02:48]}  e5 {[%clk 0:02:44]} 11. dxe5 {[%clk 0:02:47]}  Bxe5 {[%clk 0:02:45]} 12. Nd3 {[%clk 0:02:45]}  Bd6 {[%clk 0:02:33]} 13. cxd5 {[%clk 0:02:38]}  cxd5 {[%clk 0:02:32]} 14. O-O {[%clk 0:02:38]}  Nc6 {[%clk 0:02:28]} 15. Nb5 {[%clk 0:02:37]}  Bf8 {[%clk 0:02:24]} 16. Nd4 {[%clk 0:02:36]}  Be6 {[%clk 0:02:19]} 17. Rc1 {[%clk 0:02:33]}  Rc8 {[%clk 0:02:18]} 18. Nxc6 {[%clk 0:02:30]}  bxc6 {[%clk 0:02:18]} 19. Qa4 {[%clk 0:02:30]}  Qd7 {[%clk 0:01:59]} 20. Bxf6 {[%clk 0:02:26]}  gxf6 {[%clk 0:01:59]} 21. Nc5 {[%clk 0:02:27]}  Qd6 {[%clk 0:01:54]} 22. h3 {[%clk 0:02:02]}  Re7 {[%clk 0:01:53]} 23. Ba6 {[%clk 0:01:56]}  Rb8 {[%clk 0:01:49]} 24. Qc2 {[%clk 0:01:55]}  Qe5 {[%clk 0:01:40]} 25. Bd3 {[%clk 0:01:54]}  h6 {[%clk 0:01:33]} 26. Bh7+ {[%clk 0:01:43]}  Kg7 {[%clk 0:01:32]} 27. Nd3 {[%clk 0:01:43]}  Qg5 {[%clk 0:01:22]} 28. f4 {[%clk 0:01:25]}  Qg3 {[%clk 0:01:19]} 29. Rf3 {[%clk 0:01:24]}  Qh4 {[%clk 0:01:19]} 30. Nc5 {[%clk 0:01:13]}  d4 {[%clk 0:01:08]} 31. exd4 {[%clk 0:01:06]}  Bd5 {[%clk 0:01:07]} 32. Be4 {[%clk 0:01:01]}  Rxe4 {[%clk 0:00:48]} 33. Nxe4 {[%clk 0:01:02]}  Re8 {[%clk 0:00:47]} 34. Rg3+ {[%clk 0:00:30]}  Kh8 {[%clk 0:00:47]} 35. Rg4 {[%clk 0:00:30]}  Bxe4 {[%clk 0:00:26]} 36. Rxh4 {[%clk 0:00:24]}  Bxc2 {[%clk 0:00:26]} 37. Rxc2 {[%clk 0:00:25]}  Re3 {[%clk 0:00:21]} 38. Rxc6 {[%clk 0:00:20]}  Rxa3 {[%clk 0:00:20]} 39. Rc8 {[%clk 0:00:20]}  Kg7 {[%clk 0:00:21]} 40. Rg4+ {[%clk 0:00:19]}  Kh7 {[%clk 0:00:21]} 41. Rxf8 {[%clk 0:00:19]}  h5 {[%clk 0:00:21]} 42. Rxf7+ {[%clk 0:00:18]}  Kh6 {[%clk 0:00:21]} 43. Rg8 {[%clk 0:00:17]}  Rb3 {[%clk 0:00:20]} 44. Rxf6+ {[%clk 0:00:16]}  Kh7 {[%clk 0:00:21]} 45. Rb8 {[%clk 0:00:16]}  a5 {[%clk 0:00:20]} 46. b5 {[%clk 0:00:15]}  a4 {[%clk 0:00:20]} 47. Ra6 {[%clk 0:00:15]}  Rb1+ {[%clk 0:00:19]} 48. Kh2 {[%clk 0:00:15]}  Rxb5 {[%clk 0:00:18]} 49. Rxb5 {[%clk 0:00:14]} 1-0


[Site "https://www.chess.com"]

[Event "Titled Tuesday Blitz May 4 2021"]
[White "zmeeed67"]
[Black "Sanal, Vahap"]
[BlackFideId "6300545"]
[WhiteElo "2564"]
[BlackElo "2507"]
[Result "0-1"]
[Round "02"]
[TimeControl "180+1"]
[Date "2021.05.04"]
[WhiteClock "0:00:02"]
[BlackClock "0:00:16"]

1. d4 {[%clk 0:03:00]}  Nf6 {[%clk 0:02:59]} 2. c4 {[%clk 0:03:01]}  g6 {[%clk 0:02:59]} 3. Nc3 {[%clk 0:03:01]}  Bg7 {[%clk 0:02:59]} 4. e4 {[%clk 0:03:01]}  O-O {[%clk 0:03:00]} 5. Be2 {[%clk 0:03:02]}  d6 {[%clk 0:03:00]} 6. Bg5 {[%clk 0:03:03]}  c5 {[%clk 0:02:58]} 7. d5 {[%clk 0:03:03]}  e6 {[%clk 0:02:58]} 8. Qd2 {[%clk 0:03:02]}  exd5 {[%clk 0:02:58]} 9. exd5 {[%clk 0:03:03]}  Re8 {[%clk 0:02:58]} 10. Nf3 {[%clk 0:03:03]}  Bg4 {[%clk 0:02:56]} 11. O-O {[%clk 0:03:03]}  Nbd7 {[%clk 0:02:55]} 12. Rfe1 {[%clk 0:03:03]}  Bxf3 {[%clk 0:02:53]} 13. Bxf3 {[%clk 0:03:04]}  Ne5 {[%clk 0:02:54]} 14. Be2 {[%clk 0:03:03]}  a6 {[%clk 0:02:45]} 15. Qc2 {[%clk 0:02:52]}  h6 {[%clk 0:02:33]} 16. Bd2 {[%clk 0:02:51]}  Rb8 {[%clk 0:02:27]} 17. a4 {[%clk 0:02:51]}  Nh7 {[%clk 0:02:23]} 18. f4 {[%clk 0:02:38]}  Nd7 {[%clk 0:02:23]} 19. Bd3 {[%clk 0:02:32]}  Qh4 {[%clk 0:02:02]} 20. g3 {[%clk 0:02:20]}  Bd4+ {[%clk 0:01:22]} 21. Kg2 {[%clk 0:02:15]}  Qd8 {[%clk 0:01:11]} 22. Rxe8+ {[%clk 0:02:14]}  Qxe8 {[%clk 0:01:09]} 23. Re1 {[%clk 0:02:15]}  Qf8 {[%clk 0:01:09]} 24. Qd1 {[%clk 0:01:53]}  Re8 {[%clk 0:00:59]} 25. Rxe8 {[%clk 0:01:46]}  Qxe8 {[%clk 0:01:00]} 26. Qe2 {[%clk 0:01:43]}  Qf8 {[%clk 0:00:58]} 27. a5 {[%clk 0:01:25]}  h5 {[%clk 0:00:50]} 28. b3 {[%clk 0:01:21]}  Qd8 {[%clk 0:00:45]} 29. Ne4 {[%clk 0:01:17]}  Ndf6 {[%clk 0:00:42]} 30. h3 {[%clk 0:01:05]}  Nxe4 {[%clk 0:00:40]} 31. Qxe4 {[%clk 0:01:06]}  Nf6 {[%clk 0:00:32]} 32. Qe2 {[%clk 0:01:06]}  Kg7 {[%clk 0:00:31]} 33. Bc2 {[%clk 0:01:05]}  Qd7 {[%clk 0:00:25]} 34. Bd3 {[%clk 0:00:49]}  Qd8 {[%clk 0:00:25]} 35. Bc2 {[%clk 0:00:49]}  Ng8 {[%clk 0:00:24]} 36. Qe4 {[%clk 0:00:39]}  Qd7 {[%clk 0:00:21]} 37. f5 {[%clk 0:00:31]}  Nf6 {[%clk 0:00:20]} 38. Qf3 {[%clk 0:00:29]}  Be5 {[%clk 0:00:18]} 39. fxg6 {[%clk 0:00:29]}  fxg6 {[%clk 0:00:19]} 40. Qe3 {[%clk 0:00:24]}  Ng8 {[%clk 0:00:18]} 41. Qg5 {[%clk 0:00:21]}  Qf7 {[%clk 0:00:19]} 42. Bf4 {[%clk 0:00:20]}  Bxf4 {[%clk 0:00:19]} 43. Qxf4 {[%clk 0:00:20]}  Qe7 {[%clk 0:00:17]} 44. Qe4 {[%clk 0:00:17]}  Qf6 {[%clk 0:00:16]} 45. Qf4 {[%clk 0:00:14]}  Qxf4 {[%clk 0:00:15]} 46. gxf4 {[%clk 0:00:15]}  Kf6 {[%clk 0:00:16]} 47. Kf3 {[%clk 0:00:14]}  Ne7 {[%clk 0:00:16]} 48. h4 {[%clk 0:00:15]}  Nc8 {[%clk 0:00:16]} 49. f5 {[%clk 0:00:11]}  gxf5 {[%clk 0:00:15]} 50. Kf4 {[%clk 0:00:12]}  Ne7 {[%clk 0:00:16]} 51. Bb1 {[%clk 0:00:09]}  Ng6+ {[%clk 0:00:16]} 52. Kg3 {[%clk 0:00:09]}  f4+ {[%clk 0:00:17]} 53. Kf3 {[%clk 0:00:08]}  Nxh4+ {[%clk 0:00:16]} 54. Kxf4 {[%clk 0:00:09]}  Ng6+ {[%clk 0:00:17]} 55. Kg3 {[%clk 0:00:08]}  Kg5 {[%clk 0:00:18]} 56. Be4 {[%clk 0:00:06]}  Nf4 {[%clk 0:00:17]} 57. Bh7 {[%clk 0:00:03]}  h4+ {[%clk 0:00:18]} 58. Kf3 {[%clk 0:00:03]}  Nh5 {[%clk 0:00:17]} 59. Bg8 {[%clk 0:00:03]}  Ng7 {[%clk 0:00:16]} 60. Bf7 {[%clk 0:00:03]}  Nf5 {[%clk 0:00:16]} 61. Be8 {[%clk 0:00:02]}  Nd4+ {[%clk 0:00:16]} 62. Kg2 {[%clk 0:00:01]}  Nxb3 {[%clk 0:00:17]} 63. Bc6 {[%clk 0:00:02]}  Nxa5 {[%clk 0:00:16]} 0-1


[Site "https://www.chess.com"]

[Event "Titled Tuesday Blitz May 4 2021"]
[White "Acor, Corey"]
[Black "Lagunow, Raphael"]
[WhiteFideId "2024861"]
[BlackFideId "24652644"]
[WhiteElo "2744"]
[BlackElo "2400"]
[Result "1-0"]
[Round "03"]
[TimeControl "180+1"]
[Date "2021.05.04"]
[WhiteClock "0:02:21"]
[BlackClock "0:01:24"]

1. e4 {[%clk 0:03:00]}  c5 {[%clk 0:02:58]} 2. Nc3 {[%clk 0:03:00]}  Nc6 {[%clk 0:02:57]} 3. g3 {[%clk 0:03:01]}  g6 {[%clk 0:02:56]} 4. Bg2 {[%clk 0:03:01]}  Bg7 {[%clk 0:02:56]} 5. d3 {[%clk 0:03:00]}  e5 {[%clk 0:02:56]} 6. Be3 {[%clk 0:02:58]}  d6 {[%clk 0:02:56]} 7. f4 {[%clk 0:02:58]}  Nge7 {[%clk 0:02:55]} 8. Nf3 {[%clk 0:02:59]}  Nd4 {[%clk 0:02:47]} 9. O-O {[%clk 0:02:58]}  O-O {[%clk 0:02:46]} 10. Qd2 {[%clk 0:02:58]}  Be6 {[%clk 0:02:43]} 11. Nh4 {[%clk 0:02:54]}  exf4 {[%clk 0:02:06]} 12. Bxf4 {[%clk 0:02:54]}  Qd7 {[%clk 0:01:43]} 13. Rf2 {[%clk 0:02:54]}  d5 {[%clk 0:01:38]} 14. Bh6 {[%clk 0:02:53]}  f5 {[%clk 0:01:33]} 15. Bxg7 {[%clk 0:02:53]}  Kxg7 {[%clk 0:01:34]} 16. Raf1 {[%clk 0:02:42]}  Rad8 {[%clk 0:01:25]} 17. exf5 {[%clk 0:02:36]}  Nexf5 {[%clk 0:01:24]} 18. Nxf5+ {[%clk 0:02:36]}  Nxf5 {[%clk 0:01:24]} 19. g4 {[%clk 0:02:20]}  Nh4 {[%clk 0:01:22]} 20. Rxf8 {[%clk 0:02:20]}  Rxf8 {[%clk 0:01:23]} 21. Rxf8 {[%clk 0:02:21]}  Kxf8 {[%clk 0:01:24]} 22. Qh6+ {[%clk 0:02:21]} 1-0


[Site "https://www.chess.com"]